Workbook

Sheet ANEXO B1
A1: COMANDO DA AERONÁUTICA FICHA INFORMATIVA DE HELIPONTOS (VFR/IFR Não Precisão) Anexo B1 à ICA 63-19
A3: Características do Heliponto
A5: A | B5: Dados Gerais do Heliponto:
A6: A1 | B6: Denominação do Heliponto: | C6: ='DADOS-A'!C1 -> 0
A7: A2 | B7: Código OACI: | C7: ='DADOS-A'!C2 -> 0
A8: A3 | B8: HRP (Latitude): | C8: ='DADOS-A'!C3 -> 0
A9: A4 | B9: HRP (Longitude): | C9: ='DADOS-A'!C4 -> 0
A10: A5 | B10: Elevação (m): | C10: ='DADOS-A'!C5 -> 0 | D10: ='DADOS-A'!D5 -> 0
A11: A6 | B11: Máxima dimensão do helicóptero crítico em operação (m): | C11: ='DADOS-A'!C6 -> 0 | D11: ='DADOS-A'!D6 -> 0
A12: A7 | B12: Diâmetro do rotor do helicóptero crítico em operação (m): | C12: ='DADOS-A'!C7 -> 0 | D12: ='DADOS-A'!D7 -> 0
A13: A8 | B13: Classe de performance do helicóptero crítico em operação: | C13: ='DADOS-A'!C8 -> 0
A14: A9 | B14: Tipo de operação | C14: ='DADOS-A'!C9 -> 0
A15: A10 | B15: Período de operação | C15: ='DADOS-A'!C10 -> 0
A16: A11 | B16: Tipo de Heliponto: | C16: ='DADOS-A'!C11 -> 0
A17: A12 | B17: Formato da FATO: | C17: ='DADOS-A'!C12 -> 0
A18: A13 | B18: Dimensões da FATO (comp. x larg.) (m): | C18: ='DADOS-A'!C13 -> 0 | D18: ='DADOS-A'!D13 -> 0
A19: A14 | B19: Formato da TLOF: | C19: ='DADOS-A'!C14 -> 0
A20: A15 | B20: Dimensões da TLOF (comp. x larg.) (m): | C20: ='DADOS-A'!C15 -> 0 | D20: ='DADOS-A'!D15 -> 0
A21: A16 | B21: Dimensões da Área de Segurança Operacional (comp. x larg.) (m): | C21: ='DADOS-A'!C16 -> 0 | D21: ='DADOS-A'!D16 -> 0
A22: A17 | B22: Zona desimpedida: | C22: ='DADOS-A'!C17 -> 0
A23: A18 | B23: Dimensão (comp. x larg.) (m): | C23: ='DADOS-A'!C18 -> 0 | D23: ='DADOS-A'!D18 -> 0
A25: Características das Superfícies Limitadoras de Obstáculos
A27: B | B27: Superfície de Aproximação em linha reta: | C27: Superfície 1 | D27: Superfície 2
A28: B1 | B28: Número: | C28: ='APROXIMAÇÃO-B'!C2 -> 0 | D28: ='APROXIMAÇÃO-B'!D2 -> 0
A29: B2 | B29: Rumo verdadeiro: | C29: ='APROXIMAÇÃO-B'!C3 -> 0 | D29: ='APROXIMAÇÃO-B'!D3 -> 0
B30: Primeira Seção | C30: ='APROXIMAÇÃO-B'!C4 -> 0 | D30: ='APROXIMAÇÃO-B'!D4 -> 0
A31: B3 | B31: Largura da borda interna (m): | C31: ='APROXIMAÇÃO-B'!C5 -> 0 | D31: ='APROXIMAÇÃO-B'!D5 -> 0
A32: B4 | B32: Elevação da borda interna (m): | C32: ='APROXIMAÇÃO-B'!C6 -> 0 | D32: ='APROXIMAÇÃO-B'!D6 -> 0
A33: B5 | B33: Localização da borda interna: | C33: ='APROXIMAÇÃO-B'!C7 -> MARGINAL À AREA DE SEGURANÇA OPERACIONAL | D33: ='APROXIMAÇÃO-B'!D7 -> MARGINAL À AREA DE SEGURANÇA OPERACIONAL
A34: B6 | B34: Abertura para cada lado (%): | C34: ='APROXIMAÇÃO-B'!C8 -> 0.16 | D34: ='APROXIMAÇÃO-B'!D8 -> 0.16
A35: B7 | B35: Comprimento (m): | C35: ='APROXIMAÇÃO-B'!C9 -> 2500 | D35: ='APROXIMAÇÃO-B'!D9 -> 2500
A36: B8 | B36: Largura externa (m): | C36: ='APROXIMAÇÃO-B'!C10 -> 890 | D36: ='APROXIMAÇÃO-B'!D10 -> 890
A37: B9 | B37: Gradiente (%): | C37: ='APROXIMAÇÃO-B'!C11 -> 0.0333 | D37: ='APROXIMAÇÃO-B'!D11 -> 0.0333
A38: B10 | B38: Altitude acima da FATO (m): | C38: ='APROXIMAÇÃO-B'!C12 -> 83.25 | D38: ='APROXIMAÇÃO-B'!D12 -> 83.25
B39: Segunda Seção | C39: ='APROXIMAÇÃO-B'!C13 -> 0 | D39: ='APROXIMAÇÃO-B'!D13 -> 0
A40: B11 | B40: Largura da borda interna (m): | C40: ='APROXIMAÇÃO-B'!C14 -> 0 | D40: ='APROXIMAÇÃO-B'!D14 -> 0
A41: B12 | B41: Elevação da borda interna (m): | C41: ='APROXIMAÇÃO-B'!C15 -> 0 | D41: ='APROXIMAÇÃO-B'!D15 -> 0
A42: B13 | B42: Abertura para cada lado (%): | C42: ='APROXIMAÇÃO-B'!C16 -> 0 | D42: ='APROXIMAÇÃO-B'!D16 -> 0
A43: B14 | B43: Comprimento (m): | C43: ='APROXIMAÇÃO-B'!C17 -> 0 | D43: ='APROXIMAÇÃO-B'!D17 -> 0
A44: B15 | B44: Largura externa (m): | C44: ='APROXIMAÇÃO-B'!C18 -> 0 | D44: ='APROXIMAÇÃO-B'!D18 -> 0
A45: B16 | B45: Gradiente (%): | C45: ='APROXIMAÇÃO-B'!C19 -> 0 | D45: ='APROXIMAÇÃO-B'!D19 -> 0
A46: B17 | B46: Altitude acima da FATO (m): | C46: ='APROXIMAÇÃO-B'!C20 -> 0 | D46: ='APROXIMAÇÃO-B'!D20 -> 0
A47: B18 | B47: Comprimento total (m): | C47: ='APROXIMAÇÃO-B'!C21 -> 2500 | D47: ='APROXIMAÇÃO-B'!D21 -> 2500
A48: C | B48: Superfície de Decolagem em linha reta: | C48: Superfície 1 | D48: Superfície 2
A49: C1 | B49: Número: | C49: ='DECOLAGEM-C'!C2 -> 18 | D49: ='DECOLAGEM-C'!D2 -> 18
A50: C2 | B50: Rumo verdadeiro: | C50: ='DECOLAGEM-C'!C3 -> 1800000 | D50: ='DECOLAGEM-C'!D3 -> 1800000
B51: Primeira Seção | C51: ='DECOLAGEM-C'!C4 -> 0 | D51: ='DECOLAGEM-C'!D4 -> 0
A52: C3 | B52: Largura da borda interna (m): | C52: ='DECOLAGEM-C'!C5 -> 90 | D52: ='DECOLAGEM-C'!D5 -> 90
A53: C4 | B53: Elevação da borda interna (m): | C53: ='DECOLAGEM-C'!C6 -> 0 | D53: ='DECOLAGEM-C'!D6 -> 0
A54: C5 | B54: Localização da borda interna: | C54: ='DECOLAGEM-C'!C7 -> MARGINAL À AREA DE SEGURANÇA OPERACIONAL OU CLEARWAY | D54: ='DECOLAGEM-C'!D7 -> MARGINAL À AREA DE SEGURANÇA OPERACIONAL OU CLEARWAY
A55: C6 | B55: Abertura para cada lado (%): | C55: ='DECOLAGEM-C'!C8 -> 0.15 | D55: ='DECOLAGEM-C'!D8 -> 0.15
A56: C7 | B56: Comprimento (m): | C56: ='DECOLAGEM-C'!C9 -> 2850 | D56: ='DECOLAGEM-C'!D9 -> 2850
A57: C8 | B57: Largura externa (m): | C57: ='DECOLAGEM-C'!C10 -> 1800 | D57: ='DECOLAGEM-C'!D10 -> 1800
A58: C9 | B58: Gradiente (%): | C58: ='DECOLAGEM-C'!C11 -> 0.035 | D58: ='DECOLAGEM-C'!D11 -> 0.035
A59: C10 | B59: Altitude acima da FATO (m): | C59: ='DECOLAGEM-C'!C12 -> 99.75 | D59: ='DECOLAGEM-C'!D12 -> 99.75
B60: Segunda Seção | C60: ='DECOLAGEM-C'!C13 -> 0 | D60: ='DECOLAGEM-C'!D13 -> 0
A61: C11 | B61: Largura da borda interna (m): | C61: ='DECOLAGEM-C'!C14 -> 0 | D61: ='DECOLAGEM-C'!D14 -> 0
A62: C12 | B62: Elevação da borda interna (m): | C62: ='DECOLAGEM-C'!C15 -> 0 | D62: ='DECOLAGEM-C'!D15 -> 0
A63: C13 | B63: Abertura para cada lado (%): | C63: ='DECOLAGEM-C'!C16 -> 0 | D63: ='DECOLAGEM-C'!D16 -> 0
A64: C14 | B64: Comprimento (m): | C64: ='DECOLAGEM-C'!C17 -> 0 | D64: ='DECOLAGEM-C'!D17 -> 0
A65: C15 | B65: Largura externa (m): | C65: ='DECOLAGEM-C'!C18 -> 0 | D65: ='DECOLAGEM-C'!D18 -> 0
A66: C16 | B66: Gradiente (%): | C66: ='DECOLAGEM-C'!C19 -> 0 | D66: ='DECOLAGEM-C'!D19 -> 0
A67: C17 | B67: Altitude acima da FATO (m): | C67: ='DECOLAGEM-C'!C20 -> 0 | D67: ='DECOLAGEM-C'!D20 -> 0
B68: Terceira Seção | C68: ='DECOLAGEM-C'!C21 -> 0 | D68: ='DECOLAGEM-C'!D21 -> 0
A69: C18 | B69: Largura da borda interna (m): | C69: ='DECOLAGEM-C'!C22 -> 0 | D69: ='DECOLAGEM-C'!D22 -> 0
A70: C19 | B70: Elevação da borda interna (m): | C70: ='DECOLAGEM-C'!C23 -> 0 | D70: ='DECOLAGEM-C'!D23 -> 0
A71: C20 | B71: Abertura para cada lado (%): | C71: ='DECOLAGEM-C'!C24 -> 0 | D71: ='DECOLAGEM-C'!D24 -> 0
A72: C21 | B72: Comprimento (m): | C72: ='DECOLAGEM-C'!C25 -> 0 | D72: ='DECOLAGEM-C'!D25 -> 0
A73: C22 | B73: Largura externa (m): | C73: ='DECOLAGEM-C'!C26 -> 0 | D73: ='DECOLAGEM-C'!D26 -> 0
A74: C23 | B74: Gradiente (%): | C74: ='DECOLAGEM-C'!C27 -> 0 | D74: ='DECOLAGEM-C'!D27 -> 0
A75: C24 | B75: Altitude acima da FATO (m): | C75: ='DECOLAGEM-C'!C28 -> 0 | D75: ='DECOLAGEM-C'!D28 -> 0
A76: C25 | B76: Comprimento total (m): | C76: ='DECOLAGEM-C'!C29 -> 2850 | D76: ='DECOLAGEM-C'!D29 -> 2850
A78: D | B78: Superfície de Transição:
A79: D1 | B79: Gradiente (%): | C79: ='TRANSIÇÃO-D'!C2 -> NA
A80: D2 | B80: Altitude (m): | C80: ='TRANSIÇÃO-D'!C3 -> NA
A82: E | B82: Superfície de Aproximação / Decolagem em curva: | C82: Superfície 1 | D82: Superfície 2
A83: E1 | B83: Mudança de Direção: | C83: ='APROX_DEP_CURVA-E'!C2 -> 0 | D83: ='APROX_DEP_CURVA-E'!D2 -> 0
A84: E2 | B84: Raio de curva na linha central (m): | C84: ='APROX_DEP_CURVA-E'!C3 -> CORRIGIR PARA >= 270 m | D84: ='APROX_DEP_CURVA-E'!D3 -> CORRIGIR PARA >= 270 m
A85: E3 | B85: Distância do portão interno (m): | C85: ='APROX_DEP_CURVA-E'!C4 -> CORRIGIR PARA DIST. >= 575 | D85: ='APROX_DEP_CURVA-E'!D4 -> CORRIGIR PARA DIST. >= 575
A86: E4 | B86: Largura do portão interno (m): | C86: ='APROX_DEP_CURVA-E'!C5 -> 0 | D86: ='APROX_DEP_CURVA-E'!D5 -> 0
A87: E5 | B87: Largura do portão externo (m): | C87: ='APROX_DEP_CURVA-E'!C6 -> 0 | D87: ='APROX_DEP_CURVA-E'!D6 -> 
A88: E6 | B88: Elevação do portão interno (m): | C88: ='APROX_DEP_CURVA-E'!C7 ->  | D88: ='APROX_DEP_CURVA-E'!D7 -> 
A89: E7 | B89: Elevação do portão externo (m): | C89: ='APROX_DEP_CURVA-E'!C8 -> 0 | D89: ='APROX_DEP_CURVA-E'!D8 -> 
A90: E8 | B90: Gradiente (%): | C90: ='APROX_DEP_CURVA-E'!C9 -> 0.0333 | D90: ='APROX_DEP_CURVA-E'!D9 -> 0.0333
A91: E9 | B91: Abertura para cada lado (%): | C91: ='APROX_DEP_CURVA-E'!C10 -> 0.15 | D91: ='APROX_DEP_CURVA-E'!D10 -> 0.15

Sheet DADOS-A (hidden)
A1: A1 | B1: Denominação do Heliponto: | E1: CLASSE 1 | F1: VFR | G1: DIURNO | H1: SUPERFÍCIE | I1: QUADRADO | J1: QUADRADA | K1: APLICÁVEL | L1: SIM
A2: A2 | B2: Código OACI: | E2: CLASSE 2 | F2: IFR NÃO PRECISÃO | G2: NOTURNO | H2: ELEVADO | I2: RETANGULAR | J2: RETANGULAR | K2: NÃO APLICÁVEL | L2: NÃO
A3: A3 | B3: HRP (Latitude): | C3: =C25 -> 0 | D3: S | E3: CLASSE 3 | G3: DIURNO / NOTURNO | I3: CIRCULAR
A4: A4 | B4: HRP (Longitude): | C4: =D25 -> 0 | D4: W
A5: A5 | B5: Elevação (m):
A6: A6 | B6: Máxima dimensão do helicóptero crítico em operação (m):
A7: A7 | B7: Diâmetro do rotor do helicóptero crítico em operação (m):
A8: A8 | B8: Classe de performance do helicóptero crítico em operação:
A9: A9 | B9: Tipo de operação
A10: A10 | B10: Período de operação
A11: A11 | B11: Tipo de Heliponto: | H11: SUPERFÍCIE
A12: A12 | B12: Formato da FATO:
A13: A13 | B13: Dimensões da FATO (comp. x larg.) (m):
A14: A14 | B14: Formato da TLOF:
A15: A15 | B15: Dimensões da TLOF (comp. x larg.) (m):
A16: A16 | B16: Dimensões da Área de Segurança Operacional (comp. x larg.) (m):
A17: A17 | B17: Zona desimpedida:
A18: A18 | B18: Dimensão (comp. x larg.) (m):
C25: =C21*10000+C22*100+C23 -> 0 | D25: =D21*10000+D22*100+D23 -> 0
B27: HELIPONTO COM PROCEDIMENTO PINS E VSS
B30: DECLINAÇÃO

Sheet APROXIMAÇÃO-B (hidden)
A1: B | B1: Superfície de Aproximação em linha reta: | C1: Superfície 1 | D1: Superfície 2
A2: B1 | B2: Número: | C2: =C37 -> 0 | D2: =D37 -> 0
A3: B2 | B3: Rumo verdadeiro: | C3: =C22*10000+C23*100+C24 -> 0 | D3: =C25*10000+C26*100+C27 -> 0
B4: Primeira Seção | C4: =IF(C38="abertura não permitida",C38,0) -> 0
A5: B3 | B5: Largura da borda interna (m): | C5: ='DADOS-A'!$D$16 -> 0 | D5: ='DADOS-A'!$D$16 -> 0
A6: B4 | B6: Elevação da borda interna (m): | C6: ='DADOS-A'!$C$5 -> 0 | D6: ='DADOS-A'!$C$5 -> 0
A7: B5 | B7: Localização da borda interna: | C7: MARGINAL À AREA DE SEGURANÇA OPERACIONAL | D7: MARGINAL À AREA DE SEGURANÇA OPERACIONAL
A8: B6 | B8: Abertura para cada lado (%): | C8: =IF('DADOS-A'!$C$10='DADOS-A'!$G$1,IF('DADOS-A'!$C$9='DADOS-A'!$F$1,0.1,0.16),IF('DADOS-A'!$C$9='DADOS-A'!$F$1,0.15,0.16)) -> 0.16 | D8: =C8 -> 0.16
A9: B7 | B9: Comprimento (m): | C9: =IF('DADOS-A'!$C$9="VFR",IF('DADOS-A'!$C$8="CLASSE 1",3386,IF('DADOS-A'!$C$8="CLASSE 2",1220,245)),2500) -> 2500 | D9: =C9 -> 2500
A10: B8 | B10: Largura externa (m): | C10: =IF('DADOS-A'!$C$9="VFR",IF('DADOS-A'!$C$10="DIURNO",IF('DADOS-A'!$C$8="CLASSE 3",'DADOS-A'!$D$16+(2*'APROXIMAÇÃO-B'!C8*'APROXIMAÇÃO-B'!C9),(7*'DADOS-A'!$C$7)),IF('DADOS-A'!$C$8="CLASSE 3",'DADOS-A'!$D$16+(2*'APROXIMAÇÃO-B'!C8*'APROXIMAÇÃO-B'!C9),(10*'DADOS-A'!$C$7))),890) -> 890 | D10: 890
A11: B9 | B11: Gradiente (%): | C11: =IF('DADOS-A'!$C$9="VFR",IF('DADOS-A'!$C$8="CLASSE 1",0.045,IF('DADOS-A'!$C$8="CLASSE 2",0.125,0.08)),0.0333) -> 0.0333 | D11: 0.0333
A12: B10 | B12: Altitude acima da FATO (m): | C12: =C6+(C9*C11) -> 83.25 | D12: =D6+(D9*D11) -> 83.25
B13: Segunda Seção
A14: B11 | B14: Largura da borda interna (m): | C14: =IF(AND('DADOS-A'!$C$8="CLASSE 3",'DADOS-A'!$C$9="VFR"),IF('DADOS-A'!$C$10="DIURNO",(C5+C9*0.2),(C5+C9*0.3)),0) -> 0 | D14: =C14 -> 0
A15: B12 | B15: Elevação da borda interna (m): | C15: =IF(AND('DADOS-A'!$C$8="CLASSE 3",'DADOS-A'!$C$9="VFR"),C12,0) -> 0 | D15: =C15 -> 0
A16: B13 | B16: Abertura para cada lado (%): | C16: =IF(AND('DADOS-A'!$C$8="CLASSE 3",'DADOS-A'!$C$9="VFR"),IF('DADOS-A'!$C$10="DIURNO",0.1,0.15),0) -> 0 | D16: 0
A17: B14 | B17: Comprimento (m): | C17: =IF(AND('DADOS-A'!$C$8="CLASSE 3",'DADOS-A'!$C$9="VFR"),830,0) -> 0 | D17: 0
A18: B15 | B18: Largura externa (m): | C18: =IF(AND('DADOS-A'!$C$8="CLASSE 3",'DADOS-A'!$C$9="VFR"),IF('DADOS-A'!$C$10="DIURNO",IF('DADOS-A'!$C$7*7<C10,C10,'DADOS-A'!$C$7*7),IF('DADOS-A'!$C$7*10<C10,C10,'DADOS-A'!$C$7*10)),0) -> 0 | D18: 0
A19: B16 | B19: Gradiente (%): | C19: =IF(AND('DADOS-A'!$C$8="CLASSE 3",'DADOS-A'!$C$9="VFR"),0.16,0) -> 0 | D19: 0
A20: B17 | B20: Altitude acima da FATO (m): | C20: =IF(AND('DADOS-A'!$C$8="CLASSE 3",'DADOS-A'!$C$9="VFR"),C6+152,0) -> 0 | D20: 0
A21: B18 | B21: Comprimento total (m): | C21: =C9+C17 -> 2500 | D21: =D9+D17 -> 2500
B35: DECLINAÇÃO | D35: =C35 -> 0
C36: =C22+(C23/60+C24/3600) -> 0 | D36: =C25+(C26/60+C27/3600) -> 0
C37: =IF((C36-C35)>360,(C36-C35-360)/10,(C36-C35)/10) -> 0 | D37: =IF((D36-D35)>360,(D36-D35-360)/10,(D36-D35)/10) -> 0
C38: =IF(D36=0,"OK",IF(ABS(C36-D36)<150,"ABERTURA NÃO PERMITIDA","OK")) -> OK

Sheet DECOLAGEM-C (hidden)
A1: C | B1: Superfície de Decolagem em linha reta: | C1: Superfície 1 | D1: Superfície 2
A2: C1 | B2: Número: | C2: =IF('APROXIMAÇÃO-B'!C2+18>36,'APROXIMAÇÃO-B'!C2-18,'APROXIMAÇÃO-B'!C2+18) -> 18 | D2: =IF('APROXIMAÇÃO-B'!D2+18>36,'APROXIMAÇÃO-B'!D2-18,'APROXIMAÇÃO-B'!D2+18) -> 18
A3: C2 | B3: Rumo verdadeiro: | C3: =C32*10000+'APROXIMAÇÃO-B'!C23*100+'APROXIMAÇÃO-B'!C24 -> 1800000 | D3: =D32*10000+'APROXIMAÇÃO-B'!C26*100+'APROXIMAÇÃO-B'!C27 -> 1800000
B4: Primeira Seção
A5: C3 | B5: Largura da borda interna (m): | C5: =IF('DADOS-A'!$C$9="vfr",'DADOS-A'!$D$16,90) -> 90 | D5: =IF('DADOS-A'!$C$9="vfr",'DADOS-A'!$D$16,90) -> 90
A6: C4 | B6: Elevação da borda interna (m): | C6: ='DADOS-A'!$C$5 -> 0 | D6: ='DADOS-A'!$C$5 -> 0
A7: C5 | B7: Localização da borda interna: | C7: MARGINAL À AREA DE SEGURANÇA OPERACIONAL OU CLEARWAY | D7: MARGINAL À AREA DE SEGURANÇA OPERACIONAL OU CLEARWAY
A8: C6 | B8: Abertura para cada lado (%): | C8: =IF('DADOS-A'!$C$9='DADOS-A'!$F$2,0.3,IF('DADOS-A'!$C$10='DADOS-A'!$G$1,0.1,0.15)) -> 0.15 | D8: =C8 -> 0.15
A9: C7 | B9: Comprimento (m): | C9: =IF('DADOS-A'!$C$9="vfr",IF('DADOS-A'!$C$8="CLASSE 1",3386,IF('DADOS-A'!$C$8="CLASSE 2",1220,245)),2850) -> 2850 | D9: =C9 -> 2850
A10: C8 | B10: Largura externa (m): | C10: =IF('DADOS-A'!$C$9="vfr",IF('DADOS-A'!$C$8="CLASSE 3",(2*C8*C9)+C5,IF('DADOS-A'!$C$10="DIURNO",7*'DADOS-A'!$C$7,'DADOS-A'!$C$7*10)),1800) -> 1800 | D10: =C10 -> 1800
A11: C9 | B11: Gradiente (%): | C11: =IF('DADOS-A'!$C$9="vfr",IF('DADOS-A'!$C$8="CLASSE 1",0.045,IF('DADOS-A'!$C$8="CLASSE 2",0.125,0.08)),0.035) -> 0.035 | D11: =C11 -> 0.035
A12: C10 | B12: Altitude acima da FATO (m): | C12: =C6+(C9*C11) -> 99.75 | D12: =D6+(D9*D11) -> 99.75
B13: Segunda Seção
A14: C11 | B14: Largura da borda interna (m): | C14: =IF('DADOS-A'!$C$9="IFR NÃO PRECISÃO",1800,IF('DADOS-A'!$C$8="CLASSE 3",IF('DADOS-A'!$C$10="diurno",C5+C9*0.2,C5+C9*0.3),0)) -> 0 | D14: =C14 -> 0
A15: C12 | B15: Elevação da borda interna (m): | C15: =IF(AND('DADOS-A'!$C$8="CLASSE 3",'DADOS-A'!$C$9="VFR"),C12,IF('DADOS-A'!$C$9="IFR NÃO PRECISÃO",C12,0)) -> 0 | D15: 0
A16: C13 | B16: Abertura para cada lado (%): | C16: =IF(AND('DADOS-A'!$C$8="CLASSE 3",'DADOS-A'!$C$9="VFR"),IF('DADOS-A'!$C$10="DIURNO",0.1,0.15),IF('DADOS-A'!$C$9="IFR NÃO PRECISÃO","PARALELA",0)) -> 0 | D16: 0
A17: C14 | B17: Comprimento (m): | C17: =IF(AND('DADOS-A'!$C$8="CLASSE 3",'DADOS-A'!$C$9="VFR"),830,IF('DADOS-A'!$C$9="IFR NÃO PRECISÃO",1510,0)) -> 0 | D17: 0
A18: C15 | B18: Largura externa (m): | C18: =IF(AND('DADOS-A'!$C$8="CLASSE 3",'DADOS-A'!$C$9="VFR"),IF('DADOS-A'!$C$10="DIURNO",IF('DADOS-A'!$C$7*7<C10,C10,'DADOS-A'!$C$7*7),IF('DADOS-A'!$C$7*10<C10,C10,'DADOS-A'!$C$7*10)),IF('DADOS-A'!$C$9="ifr não precisão",1800,0)) -> 0 | D18: 0
A19: C16 | B19: Gradiente (%): | C19: =IF(AND('DADOS-A'!$C$8="CLASSE 3",'DADOS-A'!$C$9="VFR"),0.16,IF('DADOS-A'!$C$9="IFR NÃO PRECISÃO",0.035,0)) -> 0 | D19: 0
A20: C17 | B20: Altitude acima da FATO (m): | C20: =IF(AND('DADOS-A'!$C$8="CLASSE 3",'DADOS-A'!$C$9="VFR"),C6+152,IF('DADOS-A'!$C$9="IFR NÃO PRECISÃO",C6+152,0)) -> 0 | D20: 0
B21: Terceira Seção
A22: C18 | B22: Largura da borda interna (m): | C22: =IF('DADOS-A'!$C$9="IFR NÃO PRECISÃO",C18,0) -> 0 | D22: =IF('DADOS-A'!$C$9="IFR NÃO PRECISÃO",D18,0) -> 0
A23: C19 | B23: Elevação da borda interna (m): | C23: =IF('DADOS-A'!$C$9="IFR NÃO PRECISÃO",C20,0) -> 0 | D23: =IF('DADOS-A'!$C$9="IFR NÃO PRECISÃO",D20,0) -> 0
A24: C20 | B24: Abertura para cada lado (%): | C24: =IF('DADOS-A'!$C$9="IFR NÃO PRECISÃO","PARALELA",0) -> 0 | D24: =IF('DADOS-A'!$C$9="IFR NÃO PRECISÃO","PARALELA",0) -> 0
A25: C21 | B25: Comprimento (m): | C25: =IF('DADOS-A'!$C$9="IFR NÃO PRECISÃO",7640,0) -> 0 | D25: =IF('DADOS-A'!$C$9="IFR NÃO PRECISÃO",7640,0) -> 0
A26: C22 | B26: Largura externa (m): | C26: =IF('DADOS-A'!$C$9="IFR NÃO PRECISÃO",1800,0) -> 0 | D26: =IF('DADOS-A'!$C$9="IFR NÃO PRECISÃO",1800,0) -> 0
A27: C23 | B27: Gradiente (%): | C27: =IF('DADOS-A'!$C$9="IFR NÃO PRECISÃO",0.02,0) -> 0 | D27: =IF('DADOS-A'!$C$9="IFR NÃO PRECISÃO",0.02,0) -> 0
A28: C24 | B28: Altitude acima da FATO (m): | C28: =IF('DADOS-A'!$C$9="IFR NÃO PRECISÃO",C6+305,0) -> 0 | D28: =IF('DADOS-A'!$C$9="IFR NÃO PRECISÃO",D6+305,0) -> 0
A29: C25 | B29: Comprimento total (m): | C29: =C9+C17+C25 -> 2850 | D29: =D9+D17+D25 -> 2850
C32: =IF('APROXIMAÇÃO-B'!C22+180>360,'APROXIMAÇÃO-B'!C22-180,'APROXIMAÇÃO-B'!C22+180) -> 180 | D32: =IF('APROXIMAÇÃO-B'!C25+180>360,'APROXIMAÇÃO-B'!C25-180,'APROXIMAÇÃO-B'!C25+180) -> 180

Sheet TRANSIÇÃO-D (hidden)
A1: D | B1: Superfície de Transição:
A2: D1 | B2: Gradiente (%): | C2: =IF('DADOS-A'!$C$27="SIM",IF('DADOS-A'!$C$9="VFR",0.5,0.2),"NA") -> NA
A3: D2 | B3: Altitude (m): | C3: =IF('DADOS-A'!C27="SIM",'DADOS-A'!$C$5+45,"NA") -> NA

Sheet APROX_DEP_CURVA-E (hidden)
A1: E | B1: Superfície de Aproximação / Decolagem em curva: | C1: Superfície 1 | D1: Superfície 2
A2: E1 | B2: Mudança de Direção: | C2: =IF(C12>120,"CORRIGIR PARA <= 120°",C12) -> 0 | D2: =IF(D12>120,"CORRIGIR PARA <= 120°",D12) -> 0
A3: E2 | B3: Raio de curva na linha central (m): | C3: =IF(C15<270,"CORRIGIR PARA >= 270 m",C15) -> CORRIGIR PARA >= 270 m | D3: =IF(D15<270,"CORRIGIR PARA >= 270 m",D15) -> CORRIGIR PARA >= 270 m
A4: E3 | B4: Distância do portão interno (m): | C4: =IF(C13<575-C15,"CORRIGIR PARA DIST. >= "&C11,C13) -> CORRIGIR PARA DIST. >= 575 | D4: =IF(D13<575-D15,"CORRIGIR PARA DIST. >= "&D11,D13) -> CORRIGIR PARA DIST. >= 575
A5: E4 | B5: Largura do portão interno (m): | C5: =MIN('DADOS-A'!$D$16+2*C13*'APROXIMAÇÃO-B'!C8,IF('DADOS-A'!$C$10="DIURNO",7*'DADOS-A'!$C$7,10*'DADOS-A'!$C$7)) -> 0 | D5: =MIN('DADOS-A'!$D$16+2*D13*'APROXIMAÇÃO-B'!D8,IF('DADOS-A'!$C$10="DIURNO",7*'DADOS-A'!$C$7,10*'DADOS-A'!$C$7)) -> 0
A6: E5 | B6: Largura do portão externo (m): | C6: =MIN('DADOS-A'!$D$16+2*C14*'APROXIMAÇÃO-B'!C8,IF('DADOS-A'!$C$10="DIURNO",7*'DADOS-A'!$C$7,10*'DADOS-A'!$C$7)) -> 0 | D6: =MIN('DADOS-A'!$D$16+2*D14*'APROXIMAÇÃO-B'!D8,IF('DADOS-A'!$C$10="DIURNO",7*'DADOS-A'!$C$7,10*'DADOS-A'!$C$7)) -> 
A7: E6 | B7: Elevação do portão interno (m): | C7: ='DADOS-A'!$C$5+IF(AND('DADOS-A'!$C$8:$D$8="CLASSE 3",'APROX_DEP_CURVA-E'!C13<245),0.08*C13,IF('DADOS-A'!$C$8:$D$8="CLASSE 3",0.08*245+0.16*(C13-245),C4*C9)) ->  | D7: ='DADOS-A'!$C$5+IF(AND('DADOS-A'!$C$8:$D$8="CLASSE 3",'APROX_DEP_CURVA-E'!D13<245),0.08*D13,IF('DADOS-A'!$C$8:$D$8="CLASSE 3",0.08*245+0.16*(D13-245),D4*D9)) -> 
A8: E7 | B8: Elevação do portão externo (m): | C8: ='DADOS-A'!$C$5+IF('DADOS-A'!$C$8:$D$8="CLASSE 3",0.08*245+0.16*(C14-245),C14*C9) -> 0 | D8: ='DADOS-A'!$C$5+IF('DADOS-A'!$C$8:$D$8="CLASSE 3",0.08*245+0.16*(D14-245),D14*D9) -> 
A9: E8 | B9: Gradiente (%): | C9: =IF(AND('DADOS-A'!$C$8:$D$8="CLASSE 3",'APROX_DEP_CURVA-E'!C13<245),"8 % E 16 %",IF('DADOS-A'!$C$8:$D$8="CLASSE 3",0.16,'APROXIMAÇÃO-B'!C11)) -> 0.0333 | D9: =IF(AND('DADOS-A'!$C$8:$D$8="CLASSE 3",'APROX_DEP_CURVA-E'!D13<245),"8 % E 16 %",IF('DADOS-A'!$C$8:$D$8="CLASSE 3",0.16,'APROXIMAÇÃO-B'!D11)) -> 0.0333
A10: E9 | B10: Abertura para cada lado (%): | C10: =IF('DADOS-A'!$C$10="DIURNO",0.1,0.15) -> 0.15 | D10: =IF('DADOS-A'!$C$10="DIURNO",0.1,0.15) -> 0.15
C11: =575-C15 -> 575 | D11: =575-D15 -> 575
B12: mudança de direção
B13: distância para o portão interno
B14: distância para o portão externo | C14: =C13+RADIANS(C12)*C15 -> 0 | D14: =(D2*3.14*D3)/180 -> 
B15: raio de curva
